fUST/lending_fUST_20251022
["ID","MTS","AMOUNT","RATE_DAILY","PERIOD"]
[391991974,1761066646730,-185.494393,0.00024879,7]
[391991975,1761066646739,-270.780863,0.00024879,7]
[391991976,1761066646749,-185.494393,0.00024879,7]
[391991977,1761066646760,-712.305321,0.00024879,7]
[391991978,1761066646769,-470.716832,0.00024879,7]
[391991979,1761066646778,-387.414574,0.00024879,7]
[391991980,1761066646787,-270.780863,0.00024879,7]
[391991981,1761066646796,-470.716832,0.00024879,7]
[391991982,1761066646804,-712.305321,0.00024879,7]
[391991983,1761066646813,-387.414574,0.00024879,7]
[391991984,1761066646822,-185.494393,0.00024879,7]
[391991985,1761066646832,-712.305321,0.00024879,7]
[391991986,1761066646841,-270.780863,0.00024879,7]
[391991987,1761066646849,-387.414574,0.00024879,7]
[391991988,1761066646858,-270.780863,0.00024879,7]
[391991989,1761066646867,-387.414574,0.00024879,7]
[391991990,1761066646876,-631.637332,0.00024879,7]
[391991991,1761066646885,-151.0,0.00024879,2]
[391991992,1761066646894,-1030.696269,0.00024879,7]
[391991993,1761066646903,-631.637332,0.00024879,7]
[391991994,1761066646912,-1030.696269,0.00024879,7]
[391991995,1761066646921,-151.0,0.00024879,2]
[391991996,1761066646931,-631.637332,0.00024879,7]
[391991997,1761066646940,-1030.696269,0.00024879,7]
[391991998,1761066646950,-533.12711643,0.0002488,2]
[391991999,1761066646959,-500.0,0.0002488,2]
[391992000,1761066646968,-500.0,0.0002488,2]
[391992001,1761066646977,-1000.0,0.0002488,2]
[391992002,1761066646986,-501.9602218,0.00024887,2]
[391992003,1761066646996,-500.0,0.00024887,2]
[391992004,1761066647006,-500.0,0.00024887,2]
[391992005,1761066647016,-500.0,0.00024887,2]
[391992006,1761066647025,-502.46996505,0.00024887,2]
[391992007,1761066647035,-500.0,0.00024889,2]
[391992008,1761066647045,-500.0,0.00024889,2]
[391992010,1761066647054,-574.82544331,0.00024889,2]
[391992012,1761066647064,-151.0,0.0002489,7]
[391992014,1761066647073,-151.0,0.0002489,7]
[391992015,1761066647083,-513.96634,0.0002489,7]
[391992016,1761066647092,-1387.09179,0.0002489,7]
[391992017,1761066647101,-513.96634,0.0002489,7]
[391992018,1761066647121,-1387.09179,0.0002489,7]
[391992019,1761066647136,-513.96634,0.0002489,7]
[391992020,1761066647155,-513.96634,0.0002489,7]
[391992021,1761066647173,-1387.09179,0.0002489,7]
[391992022,1761066647191,-1387.09179,0.0002489,7]
[391992023,1761066647207,-151.0,0.0002489,7]
[391992024,1761066647224,-151.0,0.0002489,7]
[391992025,1761066647239,-151.0,0.0002489,7]
[391992026,1761066647256,-151.0,0.0002489,7]
[391992027,1761066647274,-151.0,0.0002489,7]
[391992028,1761066647293,-151.0,0.0002489,7]
[391992029,1761066647305,-151.0,0.0002489,7]
[391992030,1761066647322,-151.0,0.0002489,7]
[391992031,1761066647340,-278.956997,0.0002489,7]
[391992032,1761066647357,-151.0,0.0002489,7]
[391992033,1761066647369,-278.956997,0.0002489,7]
[391992034,1761066647383,-151.0,0.0002489,7]
[391992035,1761066647398,-278.956997,0.0002489,7]
[391992036,1761066647413,-278.956997,0.0002489,7]
[391992037,1761066647429,-151.0,0.0002489,7]
[391992038,1761066647444,-151.0,0.0002489,7]
[391992039,1761066647458,-151.0,0.0002489,7]
[391992040,1761066647473,-151.0,0.0002489,7]
[391992041,1761066647487,-151.0,0.0002489,7]
[391992042,1761066647501,-151.0,0.0002489,7]
[391992043,1761066647517,-151.0,0.0002489,7]
[391992044,1761066647530,-151.0,0.0002489,7]
[391992045,1761066647545,-273.519545,0.0002489,7]
[391992046,1761066647559,-625.614644,0.0002489,7]
[391992047,1761066647574,-625.614644,0.0002489,7]
[391992048,1761066647588,-625.614644,0.0002489,7]
[391992049,1761066647602,-151.0,0.0002489,7]
[391992050,1761066647616,-625.614644,0.0002489,7]
[391992051,1761066647630,-151.0,0.0002489,7]
[391992052,1761066647645,-151.0,0.0002489,7]
[391992053,1761066647659,-151.0,0.0002489,7]
[391992054,1761066647674,-1266.111338,0.0002489,7]
[391992055,1761066647689,-1266.111338,0.0002489,7]
[391992056,1761066647704,-1266.111338,0.0002489,7]
[391992057,1761066647718,-1266.111338,0.0002489,7]
[391992058,1761066647732,-151.0,0.0002489,7]
[391992059,1761066647742,-151.0,0.0002489,7]
[391992060,1761066647754,-151.0,0.0002489,7]
[391992061,1761066647768,-151.0,0.0002489,7]
[391992062,1761066647777,-182.385566,0.0002489,7]
[391992063,1761066647786,-182.385566,0.0002489,7]
[391992064,1761066647795,-182.385566,0.0002489,7]
[391992065,1761066647936,-159.992408,0.0002489,2]
[391992066,1761066647953,-159.992408,0.0002489,2]
[391992067,1761066647962,-182.385566,0.0002489,7]
[391992068,1761066647972,-159.992408,0.0002489,2]
[391992069,1761066647982,-159.992408,0.0002489,2]
[391992070,1761066647991,-306.788963,0.0002489,7]
[391992071,1761066648000,-306.788963,0.0002489,7]
[391992072,1761066648013,-306.788963,0.0002489,7]
[391992073,1761066648022,-229.098007,0.0002489,7]
[391992074,1761066648032,-229.098007,0.0002489,7]
[391992075,1761066648041,-306.788963,0.0002489,7]
[391992076,1761066648050,-10000.0,0.0002489,7]
[391992077,1761066648060,-229.098007,0.0002489,7]
[391992078,1761066648071,-10000.0,0.0002489,7]
[391992079,1761066648081,-229.098007,0.0002489,7]
[391992080,1761066648091,-10000.0,0.0002489,7]
[391992081,1761066648099,-799.200874,0.0002489,7]
[391992082,1761066648108,-10000.0,0.0002489,7]
[391992083,1761066648118,-799.200874,0.0002489,7]
[391992084,1761066648127,-10000.0,0.0002489,7]
[391992085,1761066648136,-10000.0,0.0002489,7]
[391992086,1761066648145,-799.200874,0.0002489,7]
[391992087,1761066648155,-10000.0,0.0002489,7]
[391992088,1761066648164,-799.200874,0.0002489,7]
[391992089,1761066648173,-242.170959,0.0002489,7]
[391992090,1761066648182,-242.170959,0.0002489,7]
[391992091,1761066648191,-242.170959,0.0002489,7]
[391992092,1761066648199,-151.0,0.0002489,7]
[391992094,1761066648209,-242.170959,0.0002489,7]
[391992096,1761066648217,-151.0,0.0002489,7]
[391992097,1761066648226,-151.0,0.0002489,7]
[391992099,1761066648235,-237.559718,0.0002489,7]
[391992101,1761066648244,-151.0,0.0002489,7]
[391992102,1761066648254,-237.559718,0.0002489,7]
[391992104,1761066648266,-237.559718,0.0002489,7]
[391992105,1761066648275,-237.559718,0.0002489,7]
[391992107,1761066648284,-151.0,0.0002489,7]
[391992109,1761066648293,-1077.20588981,0.0002489,7]
[391992110,1761066657590,541.40903069,0.00023889,2]
[391992111,1761066681069,200.0,0.00035369,120]
[391992112,1761066704780,150.0,0.00020784,2]
[391992113,1761066705204,150.0,0.00022673,2]
[391992114,1761066708961,150.0,0.00013796,30]
[391992115,1761066709272,150.0,0.0001505,30]
[391992116,1761066738188,648.9960521,0.00023889,2]
[391992117,1761066750930,5000.0,0.00024073,2]
[391992118,1761066769360,385.0,0.00024869,120]
[391992119,1761066769792,385.0,0.00024859,120]
[391992120,1761066770240,385.0,0.00024849,120]
[391992121,1761066777060,150.0,0.0002077,2]
[391992122,1761066777498,150.0,0.00022658,2]
[391992123,1761066847632,150.0,0.00020653,2]
[391992124,1761066848070,150.0,0.00022531,2]
[391992125,1761066851894,150.0,0.00013345,30]
[391992126,1761066918837,150.0,0.00020639,2]
[391992127,1761066919316,150.0,0.00022515,2]
[391992128,1761066922279,150.0,0.00013983,30]
[391992129,1761066922765,150.0,0.00015255,30]
[391992130,1761066923164,150.0,0.00016526,30]
[391992131,1761066981878,200.0,0.00035352,120]
[391992132,1761066991790,150.0,0.00020655,2]
[391992133,1761066992190,150.0,0.00022532,2]
[391992134,1761066996609,150.0,0.00013173,30]
[391992135,1761066997034,150.0,0.00014371,30]
[391992136,1761066997464,150.0,0.00015568,30]
[391992137,1761066997936,150.0,0.00016766,30]
[391992138,1761066998344,150.0,0.00017963,30]
[391992139,1761066998743,153.89,0.00019161,30]
[391992140,1761066999142,179.54,0.00020359,30]
[391992141,1761066999600,205.19,0.00021556,30]
[391992143,1761067032073,2193.85103423,0.00023045,2]
[391992144,1761067068404,150.0,0.00020659,2]
[391992145,1761067068824,150.0,0.00022537,2]
[391992146,1761067073328,150.0,0.00013228,30]
[391992147,1761067073751,150.0,0.0001443,30]
[391992148,1761067074413,150.0,0.00015633,30]
[391992149,1761067074822,150.0,0.00016835,30]
[391992150,1761067075264,5000.0,0.00024073,2]
[391992151,1761067091184,666.0,0.00023623,2]
[391992152,1761067099542,1305.38154904,0.00024073,2]
[391992153,1761067107621,5000.0,0.00024073,2]
[391992154,1761067130057,5000.0,0.00024073,2]
[391992155,1761067143232,198.87,0.00020585,2]
[391992156,1761067143676,397.75,0.00022457,2]
[391992157,1761067148539,150.0,0.00013144,30]
[391992158,1761067148969,170.46,0.00014339,30]
[391992159,1761067149450,255.69,0.00015534,30]
[391992160,1761067149749,340.92,0.00016729,30]
[391992161,1761067150175,426.16,0.00017923,30]
[391992162,1761067150602,511.39,0.00019118,30]
[391992163,1761067151039,596.62,0.00020313,30]
[391992164,1761067151488,681.85,0.00021508,30]
[391992165,1761067151903,767.08,0.00022703,30]
[391992166,1761067152351,787.53,0.00023898,30]
[391992167,1761067153630,5000.0,0.00024073,2]
[391992168,1761067176255,5000.0,0.00024073,2]
[391992169,1761067198620,4699.79885023,0.00024073,2]
[391992170,1761067206631,203.7926754,0.00023711,2]
[391992171,1761067221613,150.0,0.00020673,2]
[391992172,1761067222086,281.53,0.00022552,2]
[391992173,1761067227656,150.0,0.00013457,30]
[391992174,1761067228050,150.0,0.0001468,30]
[391992175,1761067228523,180.98,0.00015904,30]
[391992176,1761067228948,241.31,0.00017127,30]
[391992177,1761067229420,301.64,0.0001835,30]
[391992178,1761067229827,361.97,0.00019574,30]
[391992179,1761067230261,422.3,0.00020797,30]
[391992180,1761067234421,482.63,0.0002202,30]
[391992181,1761067234931,542.95,0.00023244,30]
[391992182,1761067277009,954.0578191,0.00023718,2]
[391992183,1761067281025,200.0,0.00035341,120]
[391992184,1761067303439,150.0,0.00020642,2]
[391992185,1761067303927,215.55,0.00022519,2]
[391992186,1761067307843,150.0,0.00013168,30]
[391992187,1761067308276,150.0,0.00014365,30]
[391992188,1761067308729,150.0,0.00015562,30]
[391992189,1761067309303,184.76,0.00016759,30]
[391992190,1761067310297,230.94,0.00017956,30]
[391992191,1761067310763,277.13,0.00019153,30]
[391992192,1761067311153,323.32,0.0002035,30]
[391992193,1761067311556,369.51,0.00021547,30]
[391992194,1761067311954,415.7,0.00022745,30]
[391992195,1761067312371,246.79,0.00023942,30]
[391992196,1761067338341,454.25621415,0.00023889,2]
[391992197,1761067340263,1815.20783173,0.00022934,2]
[391992203,1761067380701,150.0,0.00020636,2]
[391992204,1761067381124,158.7,0.00022513,2]
[391992205,1761067384806,1292.98,0.00024073,2]
[391992206,1761067384971,150.0,0.00013189,30]
[391992207,1761067385360,150.0,0.00014387,30]
[391992208,1761067385771,150.0,0.00015586,30]
[391992209,1761067386207,150.0,0.00016785,30]
[391992210,1761067386600,170.03,0.00017984,30]
[391992211,1761067387030,204.04,0.00019183,30]
[391992212,1761067387436,238.04,0.00020382,30]
[391992213,1761067387830,272.05,0.00021581,30]
[391992214,1761067388280,306.06,0.0002278,30]
[391992215,1761067418824,2802.32814,0.00023744,2]
[391992216,1761067432727,5000.0,0.00024073,2]
[391992218,1761067454975,1797.6767673,0.00024073,2]
[391992219,1761067457195,150.0,0.0002067,2]
[391992220,1761067457461,150.0,0.00022549,2]
[391992221,1761067461876,150.0,0.00013116,30]
[391992222,1761067462292,150.0,0.00014309,30]
[391992223,1761067462687,150.0,0.00015501,30]
[391992224,1761067463100,150.0,0.00016693,30]
[391992225,1761067463514,150.0,0.00017886,30]
[391992226,1761067463959,154.66,0.00019078,30]
[391992227,1761067464381,180.44,0.0002027,30]
[391992228,1761067464811,206.21,0.00021463,30]
[391992229,1761067480742,417.15472785,0.00024073,2]
[391992230,1761067489263,269.0,0.0002487,120]
[391992231,1761067489730,269.0,0.0002486,120]
[391992232,1761067490228,269.0,0.0002485,120]
[391992233,1761067533508,150.0,0.00020639,2]
[391992234,1761067533916,150.0,0.00022515,2]
[391992235,1761067538594,150.0,0.00013504,30]
[391992236,1761067539016,150.0,0.00014731,30]
[391992237,1761067539419,150.0,0.00015959,30]
[391992238,1761067539811,150.0,0.00017187,30]
[391992239,1761067540208,150.0,0.00018414,30]
[391992240,1761067540616,150.0,0.00019642,30]
[391992241,1761067541057,171.1,0.0002087,30]
[391992242,1761067580703,200.0,0.00035342,120]
[391992243,1761067610338,150.0,0.00020695,2]
[391992244,1761067610751,150.0,0.00022577,2]
[391992245,1761067614535,150.0,0.00013233,30]
[391992246,1761067614964,150.0,0.00014436,30]
[391992247,1761067615414,150.0,0.00015639,30]
[391992248,1761067615819,150.0,0.00016842,30]
[391992249,1761067616230,150.0,0.00018045,30]
[391992250,1761067616616,150.0,0.00019248,30]
[391992251,1761067617040,165.58,0.00020451,30]
[391992252,1761067674237,164.25185943,0.00024,2]
[391992253,1761067684695,150.0,0.00020557,2]
[391992254,1761067685300,150.0,0.00022425,2]
[391992255,1761067689128,150.0,0.00012698,30]
[391992256,1761067689555,150.0,0.00013852,30]
[391992257,1761067691594,150.0,0.00015007,30]
[391992258,1761067692001,150.0,0.00016161,30]
[391992259,1761067692471,150.0,0.00017316,30]
[391992260,1761067692865,150.0,0.0001847,30]
[391992261,1761067693265,154.9,0.00019624,30]
[391992262,1761067699161,153257.69690731,0.00024,2]
[391992263,1761067714365,29592.57091798,0.00024,60]
[391992265,1761067720245,294.25009403,0.00027397,120]
[391992266,1761067721209,6512.78034448,0.0002,2]
[391992268,1761067763030,150.0,0.00020564,2]
[391992269,1761067763453,150.0,0.00022433,2]
[391992270,1761067767189,150.0,0.00012817,30]
[391992271,1761067767592,150.0,0.00013983,30]
[391992272,1761067768011,150.0,0.00015148,30]
[391992273,1761067768485,150.0,0.00016313,30]
[391992274,1761067768868,150.0,0.00017478,30]
[391992275,1761067769268,150.0,0.00018644,30]
[391992276,1761067781577,5000.0,0.00024073,2]
[391992277,1761067808059,2573895.88483279,0.00035341,35]
[391992278,1761067821963,1671.5254782,0.00024042,2]
[391992279,1761067827410,95000.0,0.00023288,30]
[391992344,1761067832270,-1200.0,0.00024099,2]
[391992345,1761067832280,-300.0,0.000241,2]
[391992346,1761067832289,-300.0,0.000241,2]
[391992347,1761067832300,-500.0,0.000241,2]
[391992348,1761067832311,-1317.0,0.000241,2]
[391992349,1761067832320,-300.0,0.00024108,2]
[391992350,1761067832329,-300.0,0.00024109,2]
[391992351,1761067832340,-300.0,0.00024109,2]
[391992352,1761067832350,-300.0,0.00024109,2]
[391992353,1761067832359,-300.0,0.00024109,2]
[391992354,1761067832369,-539.55712894,0.0002411,2]
[391992355,1761067832378,-556.41,0.00024132,3]
[391992356,1761067832387,-1261.01,0.00024132,10]
[391992357,1761067832397,-1050.85,0.00024132,10]
[391992358,1761067832407,-875.7,0.00024132,10]
[391992359,1761067832416,-6014.44,0.00024132,3]
[391992360,1761067832425,-50000.0,0.00024132,2]
[391992361,1761067832434,-3255.79653849,0.00024142,2]
[391992362,1761067832511,-4559.15000184,0.00024142,2]
[391992363,1761067832522,-264637.63966136,0.00024142,2]
[391992364,1761067832531,-500.0,0.00024173,2]
[391992365,1761067832542,-500.0,0.00024173,2]
[391992366,1761067832552,-500.0,0.00024173,2]
[391992367,1761067832562,-500.0,0.00024173,2]
[391992368,1761067832571,-500.0,0.00024173,2]
[391992369,1761067832580,-500.0,0.00024173,2]
[391992370,1761067832590,-500.0,0.00024173,2]
[391992371,1761067832599,-500.0,0.00024173,2]
[391992372,1761067832608,-500.0,0.00024173,2]
[391992373,1761067832617,-500.0,0.00024173,2]
[391992374,1761067832626,-150.0,0.00024302,2]
[391992375,1761067832636,-1200.0,0.00024304,2]
[391992376,1761067832645,-283.06128457,0.00024305,2]
[391992377,1761067832654,-168.49859113,0.00024305,2]
[391992378,1761067832664,-673.99436451,0.00024305,2]
[391992379,1761067832673,-802.54115259,0.00024305,2]
[391992380,1761067832682,-3210.16461037,0.00024305,2]
[391992381,1761067832691,-3363.59279922,0.00024305,2]
[391992382,1761067832703,-3859.27757412,0.00024305,2]
[391992383,1761067832712,-345.45211741,0.00024386,2]
[391992384,1761067832721,-800.0,0.00024492,2]
[391992385,1761067832730,-160.0,0.00024519,2]
[391992386,1761067832739,-500.0,0.00024559,2]
[391992387,1761067832749,-656.35074403,0.0002456,2]
[391992388,1761067832758,-2625.40297612,0.0002456,2]
[391992389,1761067832768,-5907.15669627,0.0002456,2]
[391992390,1761067832777,-800.0,0.00024565,2]
[391992391,1761067832787,-543.56884355,0.00024573,2]
[391992392,1761067832796,-501.62987116,0.00024573,2]
[391992393,1761067832806,-500.0,0.00024573,2]
[391992394,1761067832815,-506.93882491,0.00024573,2]
[391992395,1761067832825,-500.0,0.00024573,2]
[391992396,1761067832834,-500.0,0.00024573,2]
[391992397,1761067832843,-800.0,0.00024581,2]
[391992398,1761067832852,-268.0,0.0002463,2]
[391992399,1761067832862,-500.0,0.00024656,2]
[391992400,1761067832871,-390.62645772,0.00024656,2]
[391992401,1761067832880,-329.03849054,0.00024656,2]
[391992402,1761067832889,-1000.0,0.00024657,2]
[391992403,1761067832899,-1000.0,0.00024657,2]
[391992404,1761067832909,-1000.0,0.00024657,2]
[391992405,1761067832919,-1000.0,0.00024657,2]
[391992406,1761067832929,-1000.0,0.00024657,2]
[391992407,1761067832940,-500.0,0.00024658,2]
[391992408,1761067832949,-500.0,0.00024658,2]
[391992409,1761067832958,-500.0,0.00024658,2]
[391992410,1761067832967,-500.0,0.00024658,2]
[391992411,1761067832977,-172.088702,0.00024658,2]
[391992412,1761067832986,-500.0,0.0002467,2]
[391992413,1761067832995,-516.21,0.0002467,2]
[391992414,1761067833010,-500.0,0.00024671,2]
[391992415,1761067833019,-549.1,0.00024671,2]
[391992416,1761067833029,-1000.0,0.00024672,2]
[391992417,1761067833039,-1000.0,0.00024672,2]
[391992418,1761067833050,-1000.0,0.00024672,2]
[391992419,1761067833059,-1126.83886427,0.00024672,2]
[391992420,1761067833068,-894.35,0.00024672,2]
[391992421,1761067833078,-500.0,0.00024672,2]
[391992422,1761067833089,-500.0,0.00024673,2]
[391992423,1761067833099,-500.0,0.00024673,2]
[391992424,1761067833109,-151.0,0.0002468,2]
[391992425,1761067833119,-151.0,0.0002468,2]
[391992426,1761067833129,-151.0,0.0002468,2]
[391992427,1761067833138,-151.0,0.0002468,2]
[391992428,1761067833148,-230.15823635,0.0002468,2]
[391992429,1761067833158,-216.80140757,0.0002468,2]
[391992430,1761067833168,-894.35,0.00024694,2]
[391992431,1761067833178,-500.0,0.00024694,2]
[391992432,1761067833187,-500.0,0.00024694,2]
[391992433,1761067833197,-1005.43875205,0.00024721,2]
[391992434,1761067833207,-503.72329813,0.00024721,2]
[391992435,1761067833216,-1117.7185173,0.00024721,2]
[391992436,1761067833226,-1000.0,0.00024721,2]
[391992437,1761067833235,-1000.0,0.00024721,2]
[391992438,1761067833245,-1000.0,0.00024721,2]
[391992439,1761067833256,-1000.0,0.00024721,2]
[391992440,1761067833265,-1000.0,0.00024721,2]
[391992441,1761067833275,-1000.0,0.00024721,2]
[391992442,1761067833286,-1000.0,0.00024721,2]
[391992443,1761067833296,-154.72063269,0.0002479,2]
[391992444,1761067833305,-10911.9187157,0.000248,2]
[391992445,1761067833315,-500.0,0.00024833,2]
[391992446,1761067833324,-311.0,0.00024835,2]
[391992447,1761067833333,-500.0,0.0002484,2]
[391992448,1761067833343,-894.35,0.00024842,2]
[391992449,1761067833352,-894.35,0.00024842,2]
[391992450,1761067833361,-500.0,0.00024842,2]
[391992451,1761067833371,-500.0,0.00024842,2]
[391992452,1761067833380,-894.35,0.00024851,2]
[391992453,1761067833390,-894.35,0.00024851,2]
[391992454,1761067833400,-894.35,0.00024851,2]
[391992455,1761067833409,-894.35,0.00024851,2]
[391992456,1761067833419,-894.35,0.00024851,2]
[391992457,1761067833429,-894.35,0.00024851,2]
[391992458,1761067833438,-500.0,0.00024851,2]
[391992459,1761067833447,-500.0,0.00024851,2]
[391992460,1761067833457,-574.82544331,0.00024851,2]
[391992461,1761067833466,-894.35,0.00024852,2]
[391992462,1761067833475,-894.35,0.00024852,2]
[391992463,1761067833485,-894.35,0.00024852,2]
[391992464,1761067833494,-894.35,0.00024852,2]
[391992465,1761067833505,-894.35,0.00024852,2]
[391992466,1761067833514,-500.0,0.00024852,2]
[391992467,1761067833524,-5455.95935783,0.00024859,2]
[391992468,1761067833534,-894.35,0.00024859,2]
[391992469,1761067833544,-500.0,0.00024862,2]
[391992470,1761067833553,-894.35,0.00024868,2]
[391992471,1761067833563,-21823.8374313,0.00024869,2]
[391992472,1761067833573,-500.40740995,0.00024873,2]
[391992473,1761067833582,-500.0,0.00024873,2]
[391992474,1761067833592,-497.80722254,0.00024873,2]
[391992475,1761067833601,-500.0,0.00024873,2]
[391992476,1761067833611,-500.0,0.00024873,2]
[391992477,1761067833620,-500.0,0.00024873,2]
[391992478,1761067833630,-500.0,0.00024873,2]
[391992479,1761067833639,-500.0,0.00024873,2]
[391992480,1761067833650,-455.5039539,0.00024873,2]
[391992481,1761067833659,-507.19746363,0.00024873,2]
[391992482,1761067833750,-500.0,0.00024873,2]
[391992483,1761067833761,-500.0,0.00024873,2]
[391992484,1761067833771,-500.0,0.00024873,2]
[391992485,1761067833780,-500.0,0.00024873,2]
[391992486,1761067833790,-500.0,0.00024873,2]
[391992487,1761067833800,-500.0,0.00024873,2]
[391992488,1761067833814,-500.0,0.00024873,2]
[391992489,1761067833824,-500.0,0.00024873,2]
[391992490,1761067833834,-194.45326006,0.00024873,2]
[391992491,1761067833843,-500.0,0.00024873,2]
[391992492,1761067833853,-500.0,0.00024873,2]
[391992493,1761067833863,-500.0,0.00024873,2]
[391992494,1761067833873,-500.0,0.00024873,2]
[391992495,1761067833883,-538.08883784,0.00024873,2]
[391992496,1761067833893,-500.0,0.00024873,2]
[391992497,1761067833903,-500.0,0.00024873,2]
[391992498,1761067833912,-500.0,0.00024873,2]
[391992499,1761067833923,-558.03307407,0.00024873,2]
[391992500,1761067833933,-500.0,0.00024873,2]
[391992501,1761067833942,-500.0,0.00024873,2]
[391992502,1761067833952,-500.0,0.00024873,2]
[391992503,1761067833961,-500.0,0.00024873,2]
[391992504,1761067833972,-500.0,0.00024873,2]
[391992505,1761067833982,-500.0,0.00024873,2]
[391992506,1761067833991,-500.0,0.00024873,2]
[391992507,1761067834004,-500.0,0.00024873,2]
[391992508,1761067834015,-175.5319855,0.00024873,2]
[391992509,1761067834024,-500.0,0.00024873,2]
[391992510,1761067834034,-500.0,0.00024873,2]
[391992511,1761067834045,-500.0,0.00024873,2]
[391992512,1761067834055,-500.0,0.00024873,2]
[391992513,1761067834064,-500.0,0.00024873,2]
[391992514,1761067834075,-500.0,0.00024873,2]
[391992515,1761067834088,-151.0,0.00024873,7]
[391992516,1761067834098,-160.488842,0.00024873,7]
[391992517,1761067834108,-151.0,0.00024873,7]
[391992518,1761067834118,-1088.679184,0.00024873,7]
[391992519,1761067834127,-1088.679184,0.00024873,7]
[391992520,1761067834137,-1088.679184,0.00024873,7]
[391992521,1761067834147,-1088.679184,0.00024873,7]
[391992522,1761067834156,-151.0,0.00024873,7]
[391992523,1761067834166,-151.0,0.00024873,7]
[391992524,1761067834175,-151.0,0.00024873,7]
[391992525,1761067834186,-151.0,0.00024873,7]
[391992526,1761067834195,-151.0,0.00024873,7]
[391992527,1761067834205,-759.666803,0.00024873,7]
[391992528,1761067834215,-759.666803,0.00024873,7]
[391992529,1761067834225,-759.666803,0.00024873,7]
[391992530,1761067834235,-759.666803,0.00024873,7]
[391992531,1761067834246,-223.165598,0.00024873,7]
[391992532,1761067834257,-329.501783,0.00024873,7]
[391992533,1761067834266,-309.931659,0.00024873,7]
[391992534,1761067834276,-216.62469,0.00024873,7]
[391992535,1761067834287,-223.165598,0.00024873,7]
[391992536,1761067834296,-329.501783,0.00024873,7]
[391992537,1761067834306,-309.931659,0.00024873,7]
[391992538,1761067834316,-216.62469,0.00024873,7]
[391992539,1761067834325,-223.165598,0.00024873,7]
[391992540,1761067834334,-309.931659,0.00024873,7]
[391992541,1761067834344,-216.62469,0.00024873,7]
[391992542,1761067834354,-329.501783,0.00024873,7]
[391992543,1761067834365,-223.165598,0.00024873,7]
[391992544,1761067834374,-329.501783,0.00024873,7]
[391992545,1761067834383,-309.931659,0.00024873,7]
[391992546,1761067834393,-186.026088,0.00024873,7]
[391992547,1761067834402,-216.62469,0.00024873,7]
[391992548,1761067834411,-500.0,0.00024876,2]
[391992549,1761067834422,-500.0,0.00024876,2]
[391992550,1761067834431,-500.0,0.00024876,2]
[391992551,1761067834442,-550.61861512,0.00024876,2]
[391992552,1761067834452,-632.0,0.00024877,2]
[391992553,1761067834461,-151.0,0.00024877,7]
[391992554,1761067834472,-151.0,0.00024877,7]
[391992555,1761067834482,-151.0,0.00024877,7]
[391992556,1761067834491,-894.35,0.00024878,2]